fUSD/lending_fUSD_20250214
["ID","MTS","AMOUNT","RATE_DAILY","PERIOD"]
[353110819,1739563875702,-742.2,0.00014027,2]
[353110820,1739563875712,-628.42,0.00014027,2]
[353110821,1739563875723,-505.86,0.00014027,2]
[353110822,1739563875732,-569.87,0.00014027,2]
[353110823,1739563875742,-500.0,0.00014027,2]
[353110824,1739563875751,-879.66,0.00014027,2]
[353110825,1739563875761,-500.0,0.00014027,2]
[353110826,1739563875772,-500.0,0.00014027,2]
[353110827,1739563875781,-500.0,0.00014027,2]
[353110828,1739563875791,-500.0,0.00014027,2]
[353110829,1739563875801,-500.0,0.00014027,2]
[353110830,1739563875810,-843.42,0.00014027,2]
[353110831,1739563875821,-500.0,0.00014027,2]
[353110832,1739563875830,-500.0,0.00014027,2]
[353110833,1739563875840,-500.0,0.00014027,2]
[353110834,1739563875850,-500.0,0.00014027,2]
[353110835,1739563875860,-500.0,0.00014027,2]
[353110836,1739563875869,-500.0,0.00014027,2]
[353110837,1739563875880,-515.16527182,0.00014027,2]
[353110838,1739563875891,-500.0,0.00014027,2]
[353110839,1739563875901,-856.63,0.00014027,2]
[353110840,1739563875911,-500.0,0.00014027,2]
[353110841,1739563875921,-661.56,0.00014027,2]
[353110842,1739563875931,-500.0,0.00014027,2]
[353110843,1739563875941,-500.0,0.00014027,2]
[353110844,1739563875950,-500.0,0.00014027,2]
[353110845,1739563875959,-531.99,0.00014027,2]
[353110846,1739563875970,-500.0,0.00014027,2]
[353110847,1739563875980,-500.0,0.00014027,2]
[353110848,1739563875990,-500.0,0.00014027,2]
[353110849,1739563876000,-625.08,0.00014027,2]
[353110850,1739563876010,-853.7,0.00014027,2]
[353110851,1739563876019,-500.0,0.00014027,2]
[353110852,1739563876029,-500.0,0.00014027,2]
[353110853,1739563876039,-500.0,0.00014027,2]
[353110854,1739563876048,-676.98,0.00014027,2]
[353110855,1739563876057,-500.0,0.00014027,2]
[353110856,1739563876067,-500.0,0.00014027,2]
[353110857,1739563876077,-500.0,0.00014027,2]
[353110858,1739563876087,-508.91262347,0.00014027,2]
[353110859,1739563876097,-500.0,0.00014027,2]
[353110860,1739563876106,-500.0,0.00014027,2]
[353110861,1739563876116,-950.09,0.00014027,2]
[353110862,1739563876125,-668.29,0.00014027,2]
[353110863,1739563876135,-500.0,0.00014027,2]
[353110864,1739563876145,-500.0,0.00014027,2]
[353110865,1739563876155,-660.92,0.00014027,2]
[353110866,1739563876165,-995.95,0.00014027,2]
[353110867,1739563876175,-500.0,0.00014027,2]
[353110868,1739563876185,-500.0,0.00014027,2]
[353110869,1739563876195,-500.0,0.00014027,2]
[353110870,1739563876205,-369.11725619,0.00014027,2]
[353110871,1739563876215,-500.0,0.00014027,2]
[353110872,1739563876224,-884.53203152,0.00014027,2]
[353110873,1739563876247,-824.86796848,0.00014027,2]
[353110874,1739563876258,-500.0,0.00014027,2]
[353110875,1739563876267,-500.0,0.00014027,2]
[353110876,1739563876277,-500.0,0.00014027,2]
[353110877,1739563876287,-500.0,0.00014027,2]
[353110878,1739563876297,-657.51,0.00014027,2]
[353110879,1739563876307,-523.35,0.00014027,2]
[353110880,1739563876317,-500.0,0.00014027,2]
[353110881,1739563876328,-500.0,0.00014027,2]
[353110882,1739563876338,-500.0,0.00014027,2]
[353110883,1739563876350,-1180.81,0.00014027,2]
[353110884,1739563876361,-500.0,0.00014027,2]
[353110885,1739563876375,-500.0,0.00014027,2]
[353110886,1739563876384,-6.34750374,0.00014027,2]
[353110887,1739563876405,-493.65249626,0.00014027,2]
[353110888,1739563876415,-755.13,0.00014027,2]
[353110889,1739563876425,-213.75039059,0.00014027,2]
[353110890,1739563876437,-286.24960941,0.00014027,2]
[353110891,1739563876451,-262.47822575,0.00014027,2]
[353110892,1739563876464,-237.52177425,0.00014027,2]
[353110893,1739563876473,-207.38247786,0.00014027,2]
[353110894,1739563876491,-992.23752214,0.00014027,2]
[353110895,1739563876502,-631.11,0.00014027,2]
[353110896,1739563876512,-1531.24,0.00014027,2]
[353110897,1739563876521,-1064.28,0.00014027,2]
[353110898,1739563876530,-500.0,0.00014027,2]
[353110899,1739563876540,-500.0,0.00014027,2]
[353110900,1739563876551,-500.0,0.00014027,2]
[353110901,1739563876561,-500.0,0.00014027,2]
[353110902,1739563876571,-500.0,0.00014027,2]
[353110903,1739563876581,-1025.43,0.00014027,2]
[353110904,1739563876590,-2028.79,0.00014027,2]
[353110905,1739563876600,-500.0,0.00014027,2]
[353110906,1739563876610,-500.0,0.00014027,2]
[353110907,1739563876619,-500.0,0.00014027,2]
[353110908,1739563876628,-151.0,0.00014027,2]
[353110909,1739563876637,-500.0,0.00014027,2]
[353110910,1739563876648,-758.5,0.00014027,2]
[353110911,1739563876657,-500.0,0.00014027,2]
[353110912,1739563876667,-1698.76,0.00014027,2]
[353110913,1739563876676,-161.082425,0.00014027,2]
[353110914,1739563876685,-804.17,0.00014027,2]
[353110915,1739563876695,-500.0,0.00014027,2]
[353110916,1739563876706,-189.940055,0.00014027,2]
[353110917,1739563876716,-1295.63,0.00014027,2]
[353110918,1739563876726,-507.67,0.00014027,2]
[353110919,1739563876738,-500.0,0.00014027,2]
[353110920,1739563876748,-321.90742082,0.00014027,2]
[353110921,1739563876762,-644.12298182,0.00014027,2]
[353110922,1739563876775,-151.13959736,0.00014027,2]
[353110923,1739563876784,-136.94039648,0.00014027,2]
[353110924,1739563877195,-500.0,0.00013698,2]
[353110925,1739563877206,-5.89,0.00013698,2]
[353110926,1739563877217,-494.11,0.00013698,2]
[353110927,1739563877228,-617.76,0.000137,2]
[353110928,1739563877237,-500.0,0.0001378,2]
[353110929,1739563877247,-500.0,0.00013863,2]
[353110930,1739563877257,-225.41957089,0.00013945,2]
[353110931,1739563877268,-551.35960352,0.00014027,2]
[353110932,1739563877278,-500.0,0.00014027,2]
[353110933,1739563877288,-836.44,0.00014027,2]
[353110934,1739563877297,-1041.16,0.00014027,2]
[353110935,1739563877307,-500.0,0.00014027,2]
[353110936,1739563877316,-500.0,0.00014027,2]
[353110937,1739563877325,-852.14,0.00014027,2]
[353110938,1739563877334,-1937.88,0.00014027,2]
[353110939,1739563877344,-500.0,0.00014027,2]
[353110940,1739563877354,-1330.27,0.00014027,2]
[353110941,1739563877366,-151.272029,0.00014027,2]
[353110942,1739563877380,-500.0,0.00014027,2]
[353110943,1739563877391,-575.1,0.00014027,2]
[353110944,1739563877402,-2044.64,0.00014027,2]
[353110945,1739563877415,-642.84,0.00014027,2]
[353110946,1739563877425,-2030.11,0.00014027,2]
[353110947,1739563877434,-698.08,0.00014027,2]
[353110948,1739563877444,-798.39,0.00014027,2]
[353110949,1739563877454,-500.0,0.00014027,2]
[353110950,1739563877463,-2250.74,0.00014027,2]
[353110951,1739563877472,-1404.78,0.00014027,2]
[353110952,1739563877482,-500.0,0.00014027,2]
[353110953,1739563877492,-505.06196229,0.00014027,2]
[353110954,1739563877501,-500.0,0.00014027,2]
[353110955,1739563877511,-796.51,0.00014027,2]
[353110956,1739563877521,-500.0,0.00014027,2]
[353110957,1739563877531,-500.0,0.00014027,2]
[353110958,1739563877540,-1623.37,0.00014027,2]
[353110959,1739563877550,-501.26,0.00014027,2]
[353110960,1739563877559,-883.87,0.00014027,2]
[353110961,1739563877568,-500.0,0.00014027,2]
[353110962,1739563877578,-500.0,0.00014027,2]
[353110963,1739563877587,-784.8,0.00014027,2]
[353110964,1739563877597,-623.91,0.00014027,2]
[353110965,1739563877606,-505.25,0.00014027,2]
[353110966,1739563877615,-962.51,0.00014027,2]
[353110967,1739563877624,-500.0,0.00014027,2]
[353110968,1739563877634,-500.0,0.00014027,2]
[353110969,1739563877644,-500.0,0.00014027,2]
[353110970,1739563877653,-267.98179111,0.00014027,2]
[353110971,1739563877663,-721.61,0.00014027,2]
[353110972,1739563877674,-825.62,0.00014027,2]
[353110973,1739563877685,-520.3093132,0.00014027,2]
[353110974,1739563877694,-784.42,0.00014027,2]
[353110975,1739563877704,-290.75336726,0.00014027,2]
[353110976,1739563877715,-500.0,0.00014027,2]
[353110977,1739563877725,-1808.0,0.00014027,2]
[353110978,1739563877735,-1280.46,0.00014027,2]
[353110979,1739563877744,-500.0,0.00014027,2]
[353110980,1739563877755,-607.26,0.00014027,2]
[353110981,1739563877766,-500.0,0.00014027,2]
[353110982,1739563877776,-507.8959238,0.00014027,2]
[353110983,1739563877786,-366.48310199,0.00014027,2]
[353110984,1739563877796,-1169.14,0.00014027,2]
[353110985,1739563877805,-500.0,0.00014027,2]
[353110986,1739563877815,-500.0,0.00014027,2]
[353110987,1739563877824,-500.0,0.00014027,2]
[353110988,1739563877833,-1613.47,0.00014027,2]
[353110989,1739563877843,-500.0,0.00014027,2]
[353110990,1739563877853,-500.0,0.00014027,2]
[353110991,1739563877863,-500.0,0.00014027,2]
[353110992,1739563877872,-500.0,0.00014027,2]
[353110993,1739563877883,-500.0,0.00014027,2]
[353110994,1739563877893,-1107.07,0.00014027,2]
[353110995,1739563877903,-967.62,0.00014027,2]
[353110996,1739563877913,-754.08,0.00014027,2]
[353110997,1739563877923,-606.58,0.00014027,2]
[353110998,1739563877933,-500.0,0.00014027,2]
[353110999,1739563877943,-1281.16,0.00014027,2]
[353111000,1739563877953,-500.0,0.00014027,2]
[353111001,1739563877963,-663.92,0.00014027,2]
[353111002,1739563877974,-500.0,0.00014027,2]
[353111003,1739563877984,-500.0,0.00014027,2]
[353111004,1739563877994,-500.0,0.00014027,2]
[353111005,1739563878004,-854.68,0.00014027,2]
[353111006,1739563878014,-897.34,0.00014027,2]
[353111007,1739563878026,-1076.86,0.00014027,2]
[353111008,1739563878037,-1280.76,0.00014027,2]
[353111009,1739563878048,-612.38,0.00014027,2]
[353111010,1739563878059,-500.0,0.00014027,2]
[353111011,1739563878070,-500.0,0.00014027,2]
[353111012,1739563878080,-603.04,0.00014027,2]
[353111013,1739563878091,-387.35964284,0.00014027,2]
[353111014,1739563878102,-1338.87,0.00014027,2]
[353111015,1739563878112,-500.0,0.00014027,2]
[353111016,1739563878123,-607.73,0.00014027,2]
[353111017,1739563878134,-934.27,0.00014027,2]
[353111018,1739563878145,-500.0,0.00014027,2]
[353111019,1739563878155,-500.0,0.00014027,2]
[353111020,1739563878165,-500.0,0.00014027,2]
[353111021,1739563878176,-436.74696254,0.00014027,2]
[353111022,1739563878188,-500.0,0.00014027,2]
[353111023,1739563878199,-577.53,0.00014027,2]
[353111024,1739563878210,-1672.07,0.00014027,2]
[353111025,1739563878221,-513.82416609,0.00014027,2]
[353111026,1739563878233,-907.46,0.00014027,2]
[353111027,1739563878244,-500.0,0.00014027,2]
[353111028,1739563878254,-1068.63,0.00014027,2]
[353111029,1739563878264,-575.49,0.00014027,2]
[353111030,1739563878276,-668.43,0.00014027,2]
[353111031,1739563878287,-500.0,0.00014027,2]
[353111032,1739563878298,-572.87,0.00014027,2]
[353111033,1739563878309,-738.25,0.00014027,2]
[353111034,1739563878319,-500.0,0.00014027,2]
[353111035,1739563878330,-541.17165798,0.00014027,2]
[353111036,1739563878340,-1304.96,0.00014027,2]
[353111037,1739563878350,-500.0,0.00014027,2]
[353111038,1739563878361,-883.57,0.00014027,2]
[353111039,1739563878376,-500.0,0.00014027,2]
[353111040,1739563878386,-500.0,0.00014027,2]
[353111041,1739563878396,-500.0,0.00014027,2]
[353111042,1739563878407,-500.0,0.00014027,2]
[353111043,1739563878418,-618.98,0.00014027,2]
[353111044,1739563878428,-500.0,0.00014027,2]
[353111045,1739563878438,-573.63,0.00014027,2]
[353111046,1739563878449,-512.19216874,0.00014027,2]
[353111047,1739563878459,-640.68,0.00014027,2]
[353111048,1739563878470,-500.0,0.00014027,2]
[353111049,1739563878480,-500.0,0.00014027,2]
[353111050,1739563878490,-500.0,0.00014027,2]
[353111051,1739563878500,-500.0,0.00014027,2]
[353111052,1739563878511,-500.0,0.00014027,2]
[353111053,1739563878523,-500.0,0.00014027,2]
[353111054,1739563878534,-698.97,0.00014027,2]
[353111055,1739563878545,-991.46,0.00014027,2]
[353111056,1739563878556,-984.87,0.00014027,2]
[353111057,1739563878567,-1209.25,0.00014027,2]
[353111058,1739563878578,-525.62,0.00014027,2]
[353111059,1739563878589,-500.0,0.00014027,2]
[353111060,1739563878599,-533.688701,0.00014027,2]
[353111061,1739563878610,-500.0,0.00014027,2]
[353111062,1739563878620,-536.36,0.00014027,2]
[353111063,1739563878630,-877.73,0.00014027,2]
[353111064,1739563878640,-1372.53,0.00014027,2]
[353111065,1739563878650,-1335.45,0.00014027,2]
[353111066,1739563878661,-500.0,0.00014027,2]
[353111067,1739563878671,-500.0,0.00014027,2]
[353111068,1739563878681,-519.4,0.00014027,2]
[353111069,1739563878692,-500.0,0.00014027,2]
[353111070,1739563878702,-500.0,0.00014027,2]
[353111071,1739563878712,-504.0364468,0.00014027,2]
[353111072,1739563878722,-500.0,0.00014027,2]
[353111073,1739563878732,-814.24,0.00014027,2]
[353111074,1739563878743,-893.93,0.00014027,2]
[353111075,1739563878753,-500.0,0.00014027,2]
[353111076,1739563878763,-980.55,0.00014027,2]
[353111077,1739563878773,-500.0,0.00014027,2]
[353111078,1739563878783,-2647.93,0.00014027,2]
[353111079,1739563878794,-644.01534866,0.00014027,2]
[353111080,1739563878804,-624.08,0.00014027,2]
[353111081,1739563878815,-706.55,0.00014027,2]
[353111082,1739563878826,-500.0,0.00014027,2]
[353111083,1739563878836,-585.87,0.00014027,2]
[353111084,1739563878847,-1360.96,0.00014027,2]
[353111085,1739563878857,-579.67,0.00014027,2]
[353111086,1739563878867,-500.0,0.00014027,2]
[353111087,1739563878877,-500.0,0.00014027,2]
[353111088,1739563878887,-500.0,0.00014027,2]
[353111089,1739563878898,-902.8,0.00014027,2]
[353111090,1739563878908,-610.71,0.00014027,2]
[353111091,1739563878918,-1001.64,0.00014027,2]
[353111092,1739563878928,-500.0,0.00014027,2]
[353111093,1739563878939,-776.75,0.00014027,2]
[353111094,1739563878949,-987.29,0.00014027,2]
[353111095,1739563878960,-500.0,0.00014027,2]
[353111096,1739563878970,-919.94,0.00014027,2]
[353111097,1739563878980,-500.0,0.00014027,2]
[353111098,1739563878990,-728.31,0.00014027,2]
[353111099,1739563879001,-581.83,0.00014027,2]
[353111100,1739563879012,-1504.69,0.00014027,2]
[353111101,1739563879022,-975.51,0.00014027,2]
[353111102,1739563879033,-534.61793309,0.00014027,2]
[353111103,1739563879043,-509.26880751,0.00014027,2]
[353111104,1739563879053,-500.0,0.00014027,2]
[353111105,1739563879062,-500.0,0.00014027,2]
[353111106,1739563879072,-500.0,0.00014027,2]
[353111107,1739563879083,-1633.3,0.00014027,2]
[353111108,1739563879094,-518.74,0.00014027,2]
[353111109,1739563879104,-622.4,0.00014027,2]
[353111110,1739563879115,-500.0,0.00014027,2]
[353111111,1739563879125,-823.68,0.00014027,2]
[353111112,1739563879135,-848.64,0.00014027,2]
[353111113,1739563879146,-500.0,0.00014027,2]
[353111114,1739563879157,-500.0,0.00014027,2]
[353111115,1739563879167,-1282.24,0.00014027,2]
[353111116,1739563879178,-500.0,0.00014027,2]
[353111117,1739563879189,-500.0,0.00014027,2]
[353111118,1739563879199,-1711.64,0.00014027,2]
[353111119,1739563879209,-500.0,0.00014027,2]
[353111120,1739563879220,-787.78,0.00014027,2]
[353111121,1739563879230,-500.0,0.00014027,2]
[353111122,1739563879241,-500.0,0.00014027,2]
[353111123,1739563879251,-500.0,0.00014027,2]
[353111124,1739563879262,-500.0,0.00014027,2]
[353111125,1739563879274,-500.0,0.00014027,2]
[353111126,1739563879285,-878.18,0.00014027,2]
[353111127,1739563879297,-500.0,0.00014027,2]
[353111128,1739563879308,-504.31994986,0.00014027,2]
[353111129,1739563879319,-500.0,0.00014027,2]
[353111130,1739563879329,-151.0,0.00014027,2]
[353111131,1739563879338,-663.1,0.00014027,2]
[353111132,1739563879349,-1374.74,0.00014027,2]
[353111133,1739563879359,-500.0,0.00014027,2]
[353111134,1739563879372,-1402.88,0.00014027,2]
[353111135,1739563879385,-1965.42,0.00014027,2]
[353111136,1739563879396,-500.0,0.00014027,2]
[353111137,1739563879407,-500.0,0.00014027,2]
[353111138,1739563879419,-822.86,0.00014027,2]
[353111139,1739563879430,-635.77,0.00014027,2]
[353111140,1739563879441,-1627.29,0.00014027,2]
[353111141,1739563879454,-500.0,0.00014027,2]
[353111142,1739563879465,-500.0,0.00014027,2]
[353111143,1739563879477,-968.89,0.00014027,2]
[353111144,1739563879487,-577.1,0.00014027,2]
[353111145,1739563879499,-500.0,0.00014027,2]
[353111146,1739563879510,-655.39,0.00014027,2]
[353111147,1739563879520,-155.937293,0.00014027,2]
[353111148,1739563879531,-814.03,0.00014027,2]
[353111149,1739563879543,-151.0,0.00014027,2]
[353111150,1739563879553,-500.0,0.00014027,2]
[353111151,1739563879564,-735.84,0.00014027,2]
[353111152,1739563879574,-1560.32,0.00014027,2]
[353111153,1739563879584,-1807.63,0.00014027,2]
[353111154,1739563879594,-151.0,0.00014027,2]
[353111155,1739563879604,-2596.59,0.00014027,2]
[353111156,1739563879614,-763.37,0.00014027,2]
[353111157,1739563879624,-787.22,0.00014027,2]
[353111158,1739563879635,-500.0,0.00014027,2]
[353111159,1739563879645,-151.0,0.00014027,2]
[353111160,1739563879656,-500.0,0.00014027,2]
[353111161,1739563879667,-151.0,0.00014027,2]
[353111162,1739563879678,-278.44133206,0.00014027,2]
[353111163,1739563879689,-1229.5,0.00014027,2]
[353111164,1739563879699,-1636.31,0.00014027,2]
[353111165,1739563879710,-790.1,0.00014027,2]
[353111166,1739563879720,-500.0,0.00014027,2]
[353111167,1739563879731,-2044.686389,0.00014027,2]
[353111168,1739563879742,-1878.57,0.00014027,2]
[353111169,1739563879754,-500.0,0.00014027,2]
[353111170,1739563879765,-707.21,0.00014027,2]
[353111171,1739563879775,-1018.1,0.00014027,2]
[353111172,1739563879785,-1364.44,0.00014027,2]
[353111173,1739563879796,-1211.82,0.00014027,2]
[353111174,1739563879806,-661.68,0.00014027,2]
[353111175,1739563879817,-500.0,0.00014027,2]
[353111176,1739563879827,-500.0,0.00014027,2]
[353111177,1739563879837,-4284.85,0.00014027,2]
[353111178,1739563879849,-3602.81,0.00014027,2]
[353111179,1739563879859,-1055.89,0.00014027,2]
[353111180,1739563879869,-1822.84,0.00014027,2]
[353111181,1739563879879,-521.88,0.00014027,2]
[353111182,1739563879891,-1380.9,0.00014027,2]
[353111183,1739563879901,-363.31414877,0.00014027,2]
[353111184,1739563879912,-500.0,0.00014027,2]
[353111185,1739563879922,-500.0,0.00014027,2]
[353111186,1739563879934,-2099.924062,0.00014027,2]
[353111187,1739563879944,-1817.13,0.00014027,2]
[353111188,1739563879955,-151.0,0.00014027,2]
[353111189,1739563879965,-500.0,0.00014027,2]
[353111190,1739563879974,-569.83,0.00014027,2]
[353111191,1739563879984,-500.0,0.00014027,2]
[353111192,1739563879995,-509.46,0.00014027,2]
[353111193,1739563880005,-1973.5,0.00014027,2]
[353111194,1739563880017,-1999.09,0.00014027,2]
[353111195,1739563880027,-161.301757,0.00014027,2]
[353111196,1739563880038,-624.18662188,0.00014027,2]
[353111197,1739563880049,-151.0,0.00014027,2]
[353111198,1739563880059,-1754.23,0.00014027,2]
[353111199,1739563880069,-722.58,0.00014027,2]
[353111200,1739563880081,-3163.54,0.00014027,2]
[353111201,1739563880091,-777.3,0.00014027,2]
[353111202,1739563880102,-500.0,0.00014027,2]
[353111203,1739563880113,-1081.68,0.00014027,2]
[353111204,1739563880123,-500.0,0.00014027,2]
[353111205,1739563880133,-3073.51,0.00014027,2]
[353111206,1739563880143,-1849.21,0.00014027,2]
[353111207,1739563880153,-1876.88,0.00014027,2]
[353111208,1739563880163,-1636.36,0.00014027,2]
[353111209,1739563880173,-684.82,0.00014027,2]
[353111210,1739563880184,-500.0,0.00014027,2]
[353111211,1739563880194,-1258.75,0.00014027,2]
[353111212,1739563880204,-3451.8,0.00014027,2]
[353111213,1739563880215,-151.0,0.00014027,2]
[353111214,1739563880226,-2313.09,0.00014027,2]
[353111215,1739563880236,-525.63,0.00014027,2]
[353111216,1739563880247,-500.0,0.00014027,2]
[353111217,1739563880258,-151.302052,0.00014027,2]
[353111218,1739563880269,-2440.88,0.00014027,2]
[353111219,1739563880280,-594.57,0.00014027,2]
[353111220,1739563880290,-731.72,0.00014027,2]
[353111221,1739563880300,-641.14,0.00014027,2]
[353111222,1739563880310,-2262.39,0.00014027,2]
[353111223,1739563880320,-151.0,0.00014027,2]
[353111224,1739563880331,-500.0,0.00014027,2]
[353111225,1739563880342,-2756.09,0.00014027,2]
[353111226,1739563880352,-500.0,0.00014027,2]
[353111227,1739563880363,-565.96,0.00014027,2]
[353111228,1739563880377,-500.0,0.00014027,2]
[353111229,1739563880388,-500.0,0.00014027,2]
[353111230,1739563880632,-500.0,0.00014027,2]
[353111231,1739563880655,-500.0,0.00014027,2]
[353111232,1739563880665,-500.0,0.00014027,2]
[353111233,1739563880675,-500.0,0.00014027,2]
[353111234,1739563880686,-1958.29,0.00014027,2]
[353111235,1739563880695,-1602.34,0.00014027,2]
[353111236,1739563880705,-500.0,0.00014027,2]
[353111237,1739563880714,-2803.98,0.00014027,2]
[353111238,1739563880725,-500.0,0.00014027,2]
[353111239,1739563880736,-835.64,0.00014027,2]
[353111240,1739563880745,-500.0,0.00014027,2]
[353111241,1739563880755,-558.90836643,0.00014027,2]
[353111242,1739563880766,-4057.02,0.00014027,2]
[353111243,1739563880777,-2038.26,0.00014027,2]
[353111244,1739563880787,-1055.1,0.00014027,2]
[353111245,1739563880796,-1332.83,0.00014027,2]
[353111246,1739563880807,-1763.2,0.00014027,2]
[353111247,1739563880817,-500.0,0.00014027,2]
[353111248,1739563880827,-500.0,0.00014027,2]
[353111249,1739563880838,-3381.25,0.00014027,2]
[353111250,1739563880848,-500.0,0.00014027,2]
[353111251,1739563880859,-761.43,0.00014027,2]
[353111252,1739563880870,-500.0,0.00014027,2]
[353111253,1739563880881,-2360.83,0.00014027,2]
[353111254,1739563880891,-3279.48,0.00014027,2]
[353111255,1739563880901,-1107.76,0.00014027,2]
[353111256,1739563880911,-151.0,0.00014027,2]
[353111257,1739563880920,-1488.96,0.00014027,2]
[353111258,1739563880930,-1740.63,0.00014027,2]
[353111259,1739563880939,-500.17132638,0.00014027,2]
[353111260,1739563880952,-2916.96,0.00014027,2]
[353111261,1739563880962,-500.0,0.00014027,2]
[353111262,1739563880971,-500.0,0.00014027,2]
[353111263,1739563880981,-1806.9,0.00014027,2]
[353111264,1739563880992,-396.60954522,0.00014027,2]
[353111265,1739563881001,-5082.1,0.00014027,2]
[353111266,1739563881011,-586.73888178,0.00014027,2]
[353111267,1739563881035,-126.46111822,0.00014027,2]
[353111268,1739563881046,-500.0,0.00014027,2]
[353111269,1739563881056,-500.0,0.00014027,2]
[353111270,1739563881066,-2918.13,0.00014027,2]
[353111271,1739563881076,-6582.72,0.00014027,2]
[353111272,1739563881086,-1998.38,0.00014027,2]
[353111273,1739563881097,-500.0,0.00014027,2]
[353111274,1739563881108,-500.0,0.00014027,2]
[353111275,1739563881118,-190.712929,0.00014027,2]
[353111276,1739563881127,-913.59,0.00014027,2]
[353111277,1739563881137,-500.0,0.00014027,2]
[353111278,1739563881146,-3560.44,0.00014027,2]
[353111279,1739563881156,-190.712929,0.00014027,2]
[353111280,1739563881166,-151.0,0.00014027,2]
[353111281,1739563881176,-500.0,0.00014027,2]
[353111282,1739563881186,-2986.15,0.00014027,2]
[353111283,1739563881197,-3033.09,0.00014027,2]
[353111284,1739563881207,-2105.33,0.00014027,2]
[353111285,1739563881217,-1872.73,0.00014027,2]
[353111286,1739563881228,-500.0,0.00014027,2]
[353111287,1739563881238,-5014.83,0.00014027,2]
[353111288,1739563881248,-4493.7,0.00014027,2]
[353111289,1739563881258,-1363.47,0.00014027,2]
[353111290,1739563881268,-500.0,0.00014027,2]
[353111291,1739563881280,-1318.39,0.00014027,2]
[353111292,1739563881291,-2267.94,0.00014027,2]
[353111293,1739563881300,-749.42,0.00014027,2]
[353111294,1739563881311,-524.87,0.00014027,2]
[353111295,1739563881322,-500.0,0.00014027,2]
[353111296,1739563881334,-500.0,0.00014027,2]
[353111297,1739563881344,-151.0,0.00014027,2]
[353111298,1739563881354,-1469.98,0.00014027,2]
[353111299,1739563881364,-1576.63,0.00014027,2]
[353111300,1739563881378,-500.0,0.00014027,2]
[353111301,1739563881388,-2020.040466,0.00014027,2]
[353111302,1739563881399,-3629.53,0.00014027,2]
[353111303,1739563881417,-1206.13,0.00014027,2]
[353111304,1739563881432,-500.0,0.00014027,2]
[353111305,1739563881442,-946.36,0.00014027,2]
[353111306,1739563881454,-500.0,0.00014027,2]
[353111307,1739563881464,-2020.040466,0.00014027,2]
[353111308,1739563881474,-537.54,0.00014027,2]
[353111309,1739563881483,-3171.97,0.00014027,2]
[353111310,1739563881493,-500.0,0.00014027,2]
[353111311,1739563881503,-2626.49,0.00014027,2]
[353111312,1739563881513,-588.06,0.00014027,2]
[353111313,1739563881522,-773.79,0.00014027,2]
[353111314,1739563881534,-500.0,0.00014027,2]
[353111315,1739563881543,-2568.77,0.00014027,2]
[353111316,1739563881554,-500.0,0.00014027,2]
[353111317,1739563881563,-1944.99,0.00014027,2]
[353111318,1739563881573,-500.0,0.00014027,2]